fUSD/lending_fUSD_20240222
["ID","MTS","AMOUNT","RATE_DAILY","PERIOD"]
[314870784,1708603847137,-15887.15,0.00032876,2]
[314870785,1708603847146,-2147.45,0.00032876,2]
[314870786,1708603847155,-520.58,0.00032876,2]
[314870787,1708603847164,-1162.48,0.00032876,2]
[314870788,1708603847174,-615.64,0.00032876,2]
[314870789,1708603847183,-500.0,0.00032876,2]
[314870790,1708603847192,-500.0,0.00032876,2]
[314870791,1708603847201,-1750.4,0.00032876,2]
[314870792,1708603847210,-714.67,0.00032876,2]
[314870793,1708603847221,-500.0,0.00032876,2]
[314870794,1708603847231,-500.0,0.00032876,2]
[314870795,1708603847240,-597.2,0.00032876,2]
[314870796,1708603847249,-500.0,0.00032876,2]
[314870797,1708603847259,-784.54,0.00032876,2]
[314870798,1708603847273,-7981.24,0.00032876,2]
[314870799,1708603847284,-918.46,0.00032876,2]
[314870800,1708603847294,-500.0,0.00032876,2]
[314870801,1708603847303,-1482.38,0.00032876,2]
[314870802,1708603847312,-1028.75,0.00032876,2]
[314870803,1708603847322,-500.0,0.00032876,2]
[314870804,1708603847331,-3118.99,0.00032876,2]
[314870805,1708603847340,-500.0,0.00032876,2]
[314870806,1708603847350,-666.52,0.00032876,2]
[314870807,1708603847361,-931.34,0.00032876,2]
[314870808,1708603847370,-617.95,0.00032876,2]
[314870809,1708603847379,-628.42,0.00032876,2]
[314870810,1708603847388,-500.0,0.00032876,2]
[314870811,1708603847397,-1014.97,0.00032876,2]
[314870812,1708603847407,-500.0,0.00032876,2]
[314870813,1708603847416,-1480.29,0.00032876,2]
[314870814,1708603847424,-500.0,0.00032876,2]
[314870815,1708603847434,-1529.08,0.00032876,2]
[314870816,1708603847446,-5773.23,0.00032876,2]
[314870817,1708603847455,-1104.49,0.00032876,2]
[314870818,1708603847464,-4441.2,0.00032876,2]
[314870819,1708603847474,-1225.66,0.00032876,2]
[314870820,1708603847483,-500.0,0.00032876,2]
[314870821,1708603847492,-1809.63,0.00032876,2]
[314870822,1708603847501,-727.43,0.00032876,2]
[314870823,1708603847511,-763.46,0.00032876,2]
[314870824,1708603847520,-1364.24,0.00032876,2]
[314870825,1708603847529,-500.0,0.00032876,2]
[314870826,1708603847538,-500.0,0.00032876,2]
[314870827,1708603847547,-1587.88,0.00032876,2]
[314870828,1708603847556,-847.34,0.00032876,2]
[314870829,1708603847565,-250.0,0.00032877,2]
[314870830,1708603847574,-150.0,0.00032877,2]
[314870831,1708603847583,-314.49,0.00032877,2]
[314870832,1708603847592,-344.29,0.00032877,2]
[314870833,1708603847602,-423.57,0.00032877,2]
[314870834,1708603847611,-150.0,0.00032877,2]
[314870835,1708603847620,-344.29,0.00032877,2]
[314870836,1708603847629,-423.57,0.00032877,2]
[314870837,1708603847639,-150.0,0.00032877,2]
[314870838,1708603847648,-823.06,0.00032877,2]
[314870839,1708603847657,-152.03,0.00032877,2]
[314870840,1708603847666,-423.57,0.00032877,2]
[314870841,1708603847824,-150.0,0.00032877,2]
[314870842,1708603847853,-150.0,0.00032877,2]
[314870843,1708603847863,-344.29,0.00032877,2]
[314870844,1708603847873,-150.0,0.00032877,2]
[314870845,1708603847883,-344.29,0.00032877,2]
[314870846,1708603847893,-423.57,0.00032877,2]
[314870847,1708603847903,-150.0,0.00032877,2]
[314870848,1708603847912,-733.66,0.00032877,2]
[314870849,1708603847922,-300.0,0.00032877,2]
[314870850,1708603847931,-629.04,0.00032877,2]
[314870851,1708603847941,-610.93,0.00032909,2]
[314870852,1708603847950,-760.13,0.00032923,2]
[314870853,1708603847959,-528.41437408,0.00032955,4]
[314870854,1708603847968,-642.83,0.00032963,2]
[314870855,1708603847981,-500.0,0.00032999,4]
[314870856,1708603847990,-73642.0,0.00033,2]
[314870857,1708603847999,-214.408861,0.00033,2]
[314870858,1708603848009,-150.26266521,0.00033,2]
[314870859,1708603848018,-220.4828696,0.0003305,2]
[314870860,1708603848028,-520.28162322,0.0003305,2]
[314870861,1708603848037,-1199.02742353,0.0003305,2]
[314870862,1708603848047,-5276.22145461,0.0003305,2]
[314870863,1708603848056,-329.1696136,0.0003305,2]
[314870864,1708603848066,-17200.06539999,0.0003305,2]
[314870865,1708603848076,-168.45395959,0.0003305,2]
[314870866,1708603848085,-536.4742223,0.0003305,2]
[314870867,1708603848095,-154.99950733,0.0003306,3]
[314870868,1708603848103,-1088.28,0.00033088,2]
[314870869,1708603848113,-760.13,0.00033093,2]
[314870870,1708603848122,-169.47841111,0.00033119,2]
[314870871,1708603848131,-528.41437408,0.00033133,5]
[314870872,1708603848140,-338.75279046,0.00033136,2]
[314870873,1708603848149,-101142.5118952,0.00033146,2]
[314870874,1708603848158,-23192.6989294,0.00033146,2]
[314870875,1708603848167,-204.14700503,0.00033149,4]
[314870876,1708603848176,-500.0,0.00033149,4]
[314870877,1708603848185,-500.0,0.00033149,4]
[314870878,1708603848194,-500.0,0.00033149,4]
[314870879,1708603848203,-300.0,0.00033149,2]
[314870880,1708603848213,-300.0,0.00033149,2]
[314870881,1708603848222,-300.0,0.00033149,2]
[314870882,1708603848232,-235.04245627,0.00033149,2]
[314870883,1708603848242,-23415.2750543,0.0003315,4]
[314870884,1708603848251,-465.77204814,0.0003315,4]
[314870885,1708603848261,-500.0,0.0003315,4]
[314870886,1708603848271,-500.0,0.0003315,4]
[314870887,1708603848285,-500.0,0.0003315,4]
[314870888,1708603848294,-500.0,0.0003315,4]
[314870889,1708603848304,-500.0,0.0003315,4]
[314870890,1708603848314,-500.0,0.0003315,4]
[314870891,1708603848323,-500.0,0.0003315,4]
[314870892,1708603848333,-500.0,0.0003315,4]
[314870893,1708603848343,-556.22,0.0003315,4]
[314870894,1708603848352,-500.0,0.0003315,4]
[314870895,1708603848363,-500.0,0.0003315,4]
[314870896,1708603848372,-500.0,0.0003315,4]
[314870897,1708603848381,-500.0,0.0003315,4]
[314870898,1708603848391,-500.0,0.0003315,4]
[314870899,1708603848400,-500.0,0.0003315,4]
[314870900,1708603848409,-500.0,0.0003315,4]
[314870901,1708603848418,-500.0,0.0003315,4]
[314870902,1708603848428,-500.0,0.0003315,4]
[314870903,1708603848437,-500.0,0.0003315,4]
[314870904,1708603848447,-500.0,0.0003315,4]
[314870905,1708603848457,-767.15,0.0003315,4]
[314870906,1708603848468,-500.0,0.0003315,4]
[314870907,1708603848480,-500.0,0.0003315,4]
[314870908,1708603848489,-500.0,0.0003315,4]
[314870909,1708603848498,-500.0,0.0003315,4]
[314870910,1708603848507,-500.0,0.0003315,4]
[314870911,1708603848516,-500.0,0.0003315,4]
[314870912,1708603848525,-500.0,0.0003315,4]
[314870913,1708603848535,-500.0,0.0003315,4]
[314870914,1708603848544,-500.0,0.0003315,4]
[314870915,1708603848553,-500.0,0.0003315,4]
[314870916,1708603848563,-500.0,0.0003315,4]
[314870917,1708603848572,-500.0,0.0003315,4]
[314870918,1708603848581,-500.0,0.0003315,4]
[314870919,1708603848590,-500.0,0.0003315,4]
[314870920,1708603848600,-500.0,0.0003315,4]
[314870921,1708603848609,-500.0,0.0003315,4]
[314870922,1708603848619,-579.75044189,0.0003315,4]
[314870923,1708603848628,-500.0,0.0003315,4]
[314870924,1708603848638,-500.0,0.0003315,4]
[314870925,1708603848648,-540.87,0.0003315,4]
[314870926,1708603848657,-500.0,0.0003315,4]
[314870927,1708603848666,-367.35106691,0.0003315,4]
[314870928,1708603848676,-500.0,0.0003315,4]
[314870929,1708603848686,-500.0,0.0003315,4]
[314870930,1708603848695,-500.0,0.0003315,4]
[314870931,1708603848705,-500.0,0.0003315,4]
[314870932,1708603848715,-500.0,0.0003315,4]
[314870933,1708603848724,-500.0,0.0003315,4]
[314870934,1708603848734,-500.0,0.0003315,4]
[314870935,1708603848743,-500.0,0.0003315,4]
[314870936,1708603848753,-500.0,0.0003315,4]
[314870937,1708603848762,-500.0,0.0003315,4]
[314870938,1708603848772,-213.03378192,0.0003315,4]
[314870939,1708603848782,-500.0,0.0003315,4]
[314870940,1708603848791,-500.0,0.0003315,4]
[314870941,1708603848801,-500.0,0.0003315,4]
[314870942,1708603848810,-500.0,0.0003315,4]
[314870943,1708603848819,-500.0,0.0003315,4]
[314870944,1708603848829,-500.0,0.0003315,4]
[314870945,1708603848838,-500.0,0.0003315,4]
[314870946,1708603848848,-500.0,0.0003315,4]
[314870947,1708603848857,-500.0,0.0003315,4]
[314870948,1708603848867,-837.56,0.0003315,4]
[314870949,1708603848876,-501.72,0.0003315,4]
[314870950,1708603848886,-551.84,0.0003315,4]
[314870951,1708603848895,-500.0,0.0003315,4]
[314870952,1708603848904,-500.0,0.0003315,4]
[314870953,1708603848913,-500.0,0.0003315,4]
[314870954,1708603848923,-500.0,0.0003315,4]
[314870955,1708603848933,-500.0,0.0003315,4]
[314870956,1708603848943,-500.0,0.0003315,4]
[314870957,1708603848953,-598.31624285,0.0003315,4]
[314870958,1708603848962,-926.22,0.0003315,4]
[314870959,1708603848972,-646.19316857,0.0003315,4]
[314870960,1708603848981,-500.0,0.0003315,4]
[314870961,1708603848991,-500.0,0.0003315,4]
[314870962,1708603849001,-500.0,0.0003315,4]
[314870963,1708603849012,-742.01,0.0003315,4]
[314870964,1708603849021,-500.0,0.0003315,4]
[314870965,1708603849032,-500.0,0.0003315,2]
[314870966,1708603849041,-500.0,0.0003315,4]
[314870967,1708603849052,-501.73,0.0003315,4]
[314870968,1708603849061,-537.48,0.0003315,4]
[314870969,1708603849071,-525.54,0.0003315,4]
[314870970,1708603849081,-215.65959923,0.0003315,4]
[314870971,1708603849090,-500.0,0.0003315,4]
[314870972,1708603849100,-500.0,0.0003315,4]
[314870973,1708603849109,-500.0,0.0003315,4]
[314870974,1708603849119,-512.70942149,0.0003315,4]
[314870975,1708603849128,-765.14,0.0003315,4]
[314870976,1708603849139,-500.0,0.0003315,4]
[314870977,1708603849150,-669.45,0.0003315,4]
[314870978,1708603849160,-500.0,0.0003315,4]
[314870979,1708603849171,-500.0,0.0003315,4]
[314870980,1708603849180,-188.42816368,0.0003315,4]
[314870981,1708603849200,-311.57183632,0.0003315,4]
[314870982,1708603849209,-500.0,0.0003315,4]
[314870983,1708603849219,-500.0,0.0003315,4]
[314870984,1708603849230,-500.0,0.0003315,4]
[314870985,1708603849240,-500.0,0.0003315,4]
[314870986,1708603849249,-880.18,0.0003315,4]
[314870987,1708603849259,-500.0,0.0003315,4]
[314870988,1708603849271,-500.0,0.0003315,4]
[314870989,1708603849281,-500.0,0.0003315,4]
[314870990,1708603849291,-644.89,0.0003315,4]
[314870991,1708603849300,-573.52,0.0003315,4]
[314870992,1708603849310,-500.0,0.0003315,4]
[314870993,1708603849320,-500.0,0.0003315,4]
[314870994,1708603849330,-500.0,0.0003315,4]
[314870995,1708603849340,-853.06,0.0003315,4]
[314870996,1708603849350,-528.13,0.0003315,4]
[314870997,1708603849361,-500.0,0.0003315,4]
[314870998,1708603849372,-622.95,0.0003315,4]
[314870999,1708603849382,-500.0,0.0003315,4]
[314871000,1708603849391,-500.0,0.0003315,4]
[314871001,1708603849401,-528.47,0.0003315,4]
[314871002,1708603849411,-858.35,0.0003315,4]
[314871003,1708603849421,-514.05413777,0.0003315,4]
[314871004,1708603849430,-500.0,0.0003315,4]
[314871005,1708603849440,-247.3655274,0.0003315,4]
[314871006,1708603849451,-500.0,0.0003315,4]
[314871007,1708603849461,-1172.85,0.0003315,4]
[314871008,1708603849471,-622.07,0.0003315,4]
[314871009,1708603849481,-722.14,0.0003315,4]
[314871010,1708603849491,-500.0,0.0003315,4]
[314871011,1708603849501,-500.0,0.0003315,4]
[314871012,1708603849511,-1003.13,0.0003315,4]
[314871013,1708603849520,-500.0,0.0003315,4]
[314871014,1708603849530,-500.0,0.0003315,4]
[314871015,1708603849540,-604.05,0.0003315,4]
[314871016,1708603849550,-500.0,0.0003315,4]
[314871017,1708603849559,-500.0,0.0003315,4]
[314871018,1708603849569,-500.0,0.0003315,4]
[314871019,1708603849578,-502.23,0.0003315,4]
[314871020,1708603849588,-631.19,0.0003315,4]
[314871021,1708603849597,-581.46,0.0003315,4]
[314871022,1708603849606,-500.0,0.0003315,4]
[314871023,1708603849616,-500.0,0.0003315,4]
[314871024,1708603849625,-500.0,0.0003315,4]
[314871025,1708603849634,-500.0,0.0003315,4]
[314871026,1708603849643,-500.0,0.0003315,4]
[314871027,1708603849653,-760.74,0.0003315,4]
[314871028,1708603849662,-803.85,0.0003315,4]
[314871029,1708603849672,-556.71707261,0.0003315,4]
[314871030,1708603849681,-500.0,0.0003315,4]
[314871031,1708603849690,-557.33033227,0.0003315,4]
[314871032,1708603849699,-629.39,0.0003315,4]
[314871033,1708603849709,-545.44,0.0003315,4]
[314871034,1708603849718,-500.0,0.0003315,4]
[314871035,1708603849729,-806.45,0.0003315,4]
[314871036,1708603849738,-636.27,0.0003315,4]
[314871037,1708603849748,-500.0,0.0003315,4]
[314871038,1708603849761,-829.87,0.0003315,4]
[314871039,1708603849773,-500.0,0.0003315,2]
[314871040,1708603849783,-500.0,0.0003315,4]
[314871041,1708603849794,-1000.0,0.0003315,7]
[314871042,1708603849805,-500.0,0.0003315,4]
[314871043,1708603849816,-785.57,0.0003315,4]
[314871044,1708603849826,-507.99335284,0.0003315,4]
[314871045,1708603849836,-577.9,0.0003315,4]
[314871046,1708603849845,-897.08,0.0003315,4]
[314871047,1708603849854,-501.65,0.0003315,4]
[314871048,1708603849864,-500.0,0.0003315,4]
[314871049,1708603849875,-500.0,0.0003315,4]
[314871050,1708603849884,-500.0,0.0003315,4]
[314871051,1708603849893,-500.0,0.0003315,4]
[314871052,1708603849902,-500.0,0.0003315,4]
[314871053,1708603849911,-500.0,0.0003315,4]
[314871054,1708603849921,-500.0,0.0003315,4]
[314871055,1708603849930,-842.38,0.0003315,4]
[314871056,1708603849939,-500.0,0.0003315,4]
[314871057,1708603849948,-971.3,0.0003315,4]
[314871058,1708603849958,-500.0,0.0003315,4]
[314871059,1708603849967,-592.75,0.0003315,4]
[314871060,1708603849976,-500.0,0.0003315,4]
[314871061,1708603849985,-1233.35,0.0003315,4]
[314871062,1708603849994,-500.0,0.0003315,4]
[314871063,1708603850003,-505.64,0.0003315,4]
[314871064,1708603850013,-500.0,0.0003315,4]
[314871065,1708603850022,-593.99,0.0003315,4]
[314871066,1708603850031,-699.61,0.0003315,4]
[314871067,1708603850040,-645.08,0.0003315,4]
[314871068,1708603850050,-500.0,0.0003315,4]
[314871069,1708603850360,-500.0,0.0003315,4]
[314871070,1708603850381,-500.0,0.0003315,4]
[314871071,1708603850391,-668.08,0.0003315,4]
[314871072,1708603850400,-500.0,0.0003315,4]
[314871073,1708603850410,-573.91,0.0003315,4]
[314871074,1708603850419,-500.0,0.0003315,2]
[314871075,1708603850428,-500.0,0.0003315,4]
[314871076,1708603850437,-500.0,0.0003315,4]
[314871077,1708603850448,-500.0,0.0003315,4]
[314871078,1708603850457,-500.0,0.0003315,4]
[314871079,1708603850467,-500.0,0.0003315,4]
[314871080,1708603850477,-500.0,0.0003315,4]
[314871081,1708603850486,-725.92,0.0003315,4]
[314871082,1708603850496,-500.0,0.0003315,4]
[314871083,1708603850505,-500.0,0.0003315,4]
[314871084,1708603850514,-802.92,0.0003315,4]
[314871085,1708603850523,-500.0,0.0003315,4]
[314871086,1708603850533,-711.7,0.0003315,4]
[314871087,1708603850543,-500.0,0.0003315,4]
[314871088,1708603850552,-500.0,0.0003315,4]
[314871089,1708603850562,-500.0,0.0003315,4]
[314871090,1708603850571,-500.0,0.0003315,4]
[314871091,1708603850580,-500.0,0.0003315,4]
[314871092,1708603850590,-500.0,0.0003315,4]
[314871093,1708603850599,-500.0,0.0003315,4]
[314871094,1708603850609,-638.17,0.0003315,4]
[314871095,1708603850619,-500.0,0.0003315,4]
[314871096,1708603850628,-500.0,0.0003315,4]
[314871097,1708603850637,-619.01815397,0.0003315,4]
[314871098,1708603850647,-384.34669582,0.0003315,4]
[314871099,1708603850656,-500.0,0.0003315,4]
[314871100,1708603850665,-500.0,0.0003315,4]
[314871101,1708603850675,-500.0,0.0003315,2]
[314871102,1708603850685,-500.0,0.0003315,4]
[314871103,1708603850694,-694.65,0.0003315,4]
[314871104,1708603850703,-500.0,0.0003315,4]
[314871105,1708603850713,-752.67,0.0003315,4]
[314871106,1708603850722,-836.11,0.0003315,4]
[314871107,1708603850732,-500.0,0.0003315,4]
[314871108,1708603850741,-500.0,0.0003315,4]
[314871109,1708603850750,-798.19,0.0003315,4]
[314871110,1708603850760,-500.0,0.0003315,4]
[314871111,1708603850769,-1039.21,0.0003315,4]
[314871112,1708603850779,-500.0,0.0003315,4]
[314871113,1708603850788,-663.48,0.0003315,4]
[314871114,1708603850797,-989.62,0.0003315,4]
[314871115,1708603850807,-500.0,0.0003315,4]
[314871116,1708603850817,-581.42,0.0003315,4]
[314871117,1708603850826,-500.0,0.0003315,4]
[314871118,1708603850835,-500.0,0.0003315,4]
[314871119,1708603850845,-687.2,0.0003315,4]
[314871120,1708603850854,-500.0,0.0003315,4]
[314871121,1708603850863,-756.56,0.0003315,4]
[314871122,1708603850873,-500.0,0.0003315,4]
[314871123,1708603850883,-608.33444515,0.0003315,4]
[314871124,1708603850892,-500.0,0.0003315,4]
[314871125,1708603850902,-500.0,0.0003315,4]
[314871126,1708603850911,-500.0,0.0003315,4]
[314871127,1708603850920,-500.0,0.0003315,4]
[314871128,1708603850931,-500.0,0.0003315,4]
[314871129,1708603850941,-500.0,0.0003315,4]
[314871130,1708603850950,-893.12,0.0003315,4]
[314871131,1708603850959,-500.0,0.0003315,4]
[314871132,1708603850969,-500.0,0.0003315,4]
[314871133,1708603850980,-500.0,0.0003315,4]
[314871134,1708603850989,-500.0,0.0003315,4]
[314871135,1708603850998,-533.12,0.0003315,4]
[314871136,1708603851007,-500.0,0.0003315,4]
[314871137,1708603851017,-1255.44,0.0003315,4]
[314871138,1708603851026,-500.0,0.0003315,4]
[314871139,1708603851036,-500.0,0.0003315,4]
[314871140,1708603851045,-909.05,0.0003315,4]
[314871141,1708603851055,-500.0,0.0003315,4]
[314871142,1708603851065,-500.0,0.0003315,4]
[314871143,1708603851075,-500.0,0.0003315,4]
[314871144,1708603851085,-500.0,0.0003315,4]
[314871145,1708603851095,-500.0,0.0003315,4]
[314871146,1708603851105,-902.57,0.0003315,4]
[314871147,1708603851115,-500.0,0.0003315,4]
[314871148,1708603851124,-696.95,0.0003315,4]
[314871149,1708603851134,-500.0,0.0003315,4]
[314871150,1708603851143,-500.0,0.0003315,4]
[314871151,1708603851153,-546.34,0.0003315,4]
[314871152,1708603851162,-500.0,0.0003315,4]
[314871153,1708603851171,-718.18,0.0003315,4]
[314871154,1708603851182,-317.63583922,0.0003315,4]
[314871155,1708603851191,-500.0,0.0003315,4]
[314871156,1708603851201,-500.0,0.0003315,4]
[314871157,1708603851211,-500.0,0.0003315,4]
[314871158,1708603851221,-746.63,0.0003315,4]
[314871159,1708603851235,-500.0,0.0003315,4]
[314871160,1708603851245,-500.0,0.0003315,4]
[314871161,1708603851255,-704.57,0.0003315,4]
[314871162,1708603851266,-500.0,0.0003315,4]
[314871163,1708603851276,-694.62,0.0003315,4]
[314871164,1708603851289,-1209.73,0.0003315,4]
[314871165,1708603851299,-500.0,0.0003315,4]
[314871166,1708603851309,-692.29,0.0003315,4]
[314871167,1708603851319,-500.0,0.0003315,4]
[314871168,1708603851330,-500.0,0.0003315,4]
[314871169,1708603851340,-500.0,0.0003315,4]
[314871170,1708603851350,-852.3,0.0003315,4]
[314871171,1708603851361,-500.0,0.0003315,4]
[314871172,1708603851371,-617.04,0.0003315,4]
[314871173,1708603851381,-500.0,0.0003315,4]
[314871174,1708603851390,-500.0,0.0003315,4]
[314871175,1708603851400,-543.29,0.0003315,4]
[314871176,1708603851410,-500.0,0.0003315,4]
[314871177,1708603851420,-1106.6,0.0003315,4]
[314871178,1708603851430,-500.0,0.0003315,4]
[314871179,1708603851439,-971.33,0.0003315,4]
[314871180,1708603851450,-500.0,0.0003315,4]
[314871181,1708603851473,-685.92,0.0003315,4]
[314871182,1708603851484,-500.0,0.0003315,4]
[314871183,1708603851494,-500.0,0.0003315,4]
[314871184,1708603851504,-500.0,0.0003315,4]
[314871185,1708603851514,-500.0,0.0003315,4]
[314871186,1708603851524,-1329.19,0.0003315,2]
[314871187,1708603851536,-505.28435805,0.0003315,4]
[314871188,1708603851547,-500.0,0.0003315,4]
[314871189,1708603851559,-516.13,0.0003315,4]
[314871190,1708603851571,-983.91,0.0003315,4]
[314871191,1708603851582,-500.0,0.0003315,4]
[314871192,1708603851592,-878.59,0.0003315,4]
[314871193,1708603851602,-500.0,0.0003315,4]
[314871194,1708603851612,-895.38,0.0003315,4]
[314871195,1708603851622,-500.0,0.0003315,4]
[314871196,1708603851632,-500.0,0.0003315,4]
[314871197,1708603851643,-1180.97,0.0003315,4]
[314871198,1708603851652,-500.0,0.0003315,4]
[314871199,1708603851663,-500.0,0.0003315,4]
[314871200,1708603851672,-676.67,0.0003315,4]
[314871201,1708603851682,-500.0,0.0003315,4]
[314871202,1708603851692,-500.0,0.0003315,4]
[314871203,1708603851703,-500.0,0.0003315,4]
[314871204,1708603851713,-1151.4,0.0003315,4]
[314871205,1708603851725,-500.0,0.0003315,4]
[314871206,1708603851734,-500.0,0.0003315,4]
[314871207,1708603851744,-500.0,0.0003315,4]
[314871208,1708603851754,-500.0,0.0003315,4]
[314871209,1708603851764,-1000.0,0.0003315,3]
[314871210,1708603851774,-517.38,0.0003315,4]
[314871211,1708603851783,-164.75510846,0.0003315,4]
[314871212,1708603851793,-500.0,0.0003315,4]
[314871213,1708603851803,-500.0,0.0003315,4]
[314871214,1708603851813,-500.0,0.0003315,4]
[314871215,1708603851822,-500.0,0.0003315,4]
[314871216,1708603851832,-500.0,0.0003315,4]
[314871217,1708603851841,-828.1,0.0003315,4]
[314871218,1708603851850,-1072.63,0.0003315,4]
[314871219,1708603851860,-500.0,0.0003315,4]
[314871220,1708603851869,-500.0,0.0003315,4]
[314871221,1708603851879,-910.5,0.0003315,4]
[314871222,1708603851889,-500.0,0.0003315,4]
[314871223,1708603851903,-582.49,0.0003315,4]
[314871224,1708603851913,-500.0,0.0003315,4]
[314871225,1708603851922,-500.0,0.0003315,4]
[314871226,1708603851932,-500.0,0.0003315,4]
[314871227,1708603851942,-500.0,0.0003315,4]
[314871228,1708603851951,-885.85,0.0003315,4]
[314871229,1708603851962,-500.0,0.0003315,4]
[314871230,1708603851972,-500.0,0.0003315,4]
[314871231,1708603851982,-511.24,0.0003315,4]
[314871232,1708603851991,-544.99820479,0.0003315,4]
[314871233,1708603852001,-524.44297104,0.0003315,4]
[314871234,1708603852011,-61.13391353,0.0003315,4]
[314871235,1708603852641,-1008.26608647,0.0003315,4]
[314871236,1708603852651,-500.0,0.0003315,4]
[314871237,1708603852660,-398.09944669,0.0003315,4]
[314871238,1708603852686,-249.83055331,0.0003315,4]
[314871239,1708603852696,-583.94,0.0003315,4]
[314871240,1708603852707,-500.0,0.0003315,4]
[314871241,1708603852716,-158.3625121,0.0003315,4]
[314871242,1708603852923,-341.6374879,0.0003315,4]
[314871243,1708603852934,-500.0,0.0003315,4]
[314871244,1708603852944,-500.0,0.0003315,4]
[314871245,1708603852954,-189.50869032,0.0003315,4]
[314871246,1708603853635,-518.97390054,0.00028039,2]
[314871247,1708603853773,-1146.05316646,0.00028039,2]
[314871248,1708603853783,-849.29130968,0.0003315,4]
[314871249,1708603853794,-828.94,0.0003315,4]
[314871250,1708603853804,-500.0,0.0003315,4]
[314871251,1708603853813,-1418.59,0.0003315,4]
[314871252,1708603853823,-534.11,0.0003315,4]
[314871253,1708603853833,-500.0,0.0003315,4]
[314871254,1708603853844,-644.92,0.0003315,4]
[314871255,1708603853859,-500.0,0.0003315,4]
[314871256,1708603853869,-500.0,0.0003315,4]
[314871257,1708603853879,-554.05,0.0003315,4]
[314871258,1708603853890,-500.0,0.0003315,4]
[314871259,1708603853901,-500.0,0.0003315,4]
[314871260,1708603853911,-500.0,0.0003315,4]
[314871261,1708603853921,-1588.26,0.0003315,4]
[314871262,1708603853932,-500.0,0.0003315,4]
[314871263,1708603853941,-621.14046959,0.0003315,4]
[314871264,1708603853951,-648.06312586,0.0003315,2]
[314871265,1708603853961,-500.0,0.0003315,4]
[314871266,1708603853971,-500.0,0.0003315,4]
[314871267,1708603853982,-509.44,0.0003315,4]
[314871268,1708603853996,-500.0,0.0003315,4]
[314871269,1708603854006,-500.0,0.0003315,4]
[314871270,1708603854017,-541.32,0.0003315,4]
[314871271,1708603854028,-500.0,0.0003315,4]
[314871272,1708603854038,-500.0,0.0003315,4]
[314871273,1708603854048,-726.54,0.0003315,4]
[314871274,1708603854057,-500.0,0.0003315,4]
[314871275,1708603854067,-1022.99,0.0003315,4]
[314871276,1708603854077,-500.0,0.0003315,4]
[314871277,1708603854087,-500.0,0.0003315,4]
[314871278,1708603854096,-500.0,0.0003315,4]
[314871279,1708603854107,-500.0,0.0003315,4]
[314871280,1708603854116,-500.0,0.0003315,4]
[314871281,1708603854126,-500.0,0.0003315,4]
[314871282,1708603854136,-500.0,0.0003315,4]
[314871283,1708603854146,-723.05,0.0003315,4]